[Event "WYCC U18 Girls 2019"]
[Site "Mumbai"]
[Date "2019.10.11"]
[Round "10.13"]
[White "Azali, Tannaz"]
[Black "Hamedi Nia, Vesal"]
[Result "1/2-1/2"]
[ECO "D53"]
[WhiteElo "2022"]
[BlackElo "2057"]
[Annotator "NA"]
[PlyCount "129"]
[EventDate "2019.10.02"]
[EventType "swiss"]
[EventCountry "IND"]
[SourceTitle "playchess.com"]
[Source "ChessBase"]
[SourceQuality "1"]
[TimeControl "40/5400+30:1800+30"]

1. d4 {[%emt 0:00:00]} d5 {[%emt 0:00:00]} 2. c4 {[%emt 0:00:00]} e6 {[%emt 0:00:00]} 3. Nc3 {[%emt 0:00:11]} Nf6 {[%emt 0:00:04]} 4. Bg5 {[%emt 0:00:28]} Be7 {[%emt 0:01:24]} 5. e3 {[%emt 0:00:14]} O-O {[%emt 0:01:05]} 6. cxd5 {[%emt 0:00:25]} exd5 {[%emt 0:00:20]} 7. Bd3 {[%emt 0:00:11]} c6 {[%emt 0:00:30]} 8. Qc2 {[%emt 0:01:02]} Nbd7 {[%emt 0:00:16]} 9. Nge2 {[%emt 0:01:07]} Re8 {[%emt 0:03:07]} 10. O-O {[%emt 0:03:27]} Nf8 {[%emt 0:01:01]} 11. f3 {[%emt 0:05:36]} g6 {[%emt 0:02:05]} 12. h3 {[%emt 0:07:03]} Ne6 {[%emt 0:17:02]} 13. Bh4 {[%emt 0:02:31]} Nh5 {[%emt 0:03:41]} 14. Bf2 {[%emt 0:06:22]} Bh4 {[%emt 0:09:48]} 15. f4 {[%emt 0:10:05]} Bxf2+ {[%emt 0:15:52]} 16. Rxf2 {[%emt 0:00:01]} Neg7 {[%emt 0:04:14]} 17. e4 {[%emt 0:09:40]} dxe4 {[%emt 0:02:19]} 18. Nxe4 {[%emt 0:00:10]} Nf6 {[%emt 0:02:03]} 19. Ng5 {[%emt 0:03:22]} Nd5 {[%emt 0:00:47]} 20. Qd2 {[%emt 0:13:44]} Bf5 {[%emt 0:03:31]} 21. Bc4 {[%emt 0:04:29]} Ne6 {[%emt 0:10:06]} 22. Ng3 {[%emt 0:12:20]} Ng7 {[%emt 0:15:44]} 23. Rc1 {[%emt 0:05:10]} Qd6 {[%emt 0:01:55]} 24. Bxd5 {[%emt 0:03:50]} Qxd5 {[%emt 0:00:41]} 25. Rc5 {[%emt 0:00:07]} Qd6 {[%emt 0:01:36]} 26. Nf3 {[%emt 0:01:40]} Rad8 {[%emt 0:00:36]} 27. Re5 {[%emt 0:00:25]} f6 {[%emt 0:00:56]} 28. Ree2 {[%emt 0:02:18]} Qd5 {[%emt 0:00:55]} 29. Qb4 {[%emt 0:01:10]} b6 {[%emt 0:01:21]} 30. Qa3 {[%emt 0:02:58]} Qd7 {[%emt 0:00:40]} 31. Rd2 {[%emt 0:00:16]} Qe7 {[%emt 0:00:43]} 32. Qc3 {[%emt 0:01:27]} Qd6 {[%emt 0:00:31]} 33. Nxf5 {[%emt 0:01:58]} Nxf5 {[%emt 0:00:08]} 34. Rc2 {[%emt 0:01:05]} Ne3 {[%emt 0:01:18]} 35. Rc1 {[%emt 0:00:39]} Rc8 {[%emt 0:00:24]} 36. Nd2 {[%emt 0:00:44]} Nd5 {[%emt 0:00:07]} 37. Qg3 {[%emt 0:00:34]} f5 {[%emt 0:00:58]} 38. Nc4 {[%emt 0:00:21]} Qb4 {[%emt 0:00:15]} 39. a3 {[%emt 0:00:54]} Qe7 {[%emt 0:00:46]} 40. Ne5 {[%emt 0:00:12]} Qd6 {[%emt 0:00:23]} 41. Rfc2 {[%emt 0:04:06]} c5 {[%emt 0:19:30]} 42. b4 {[%emt 0:01:10]} c4 {[%emt 0:04:18]} 43. Rxc4 {[%emt 0:01:15]} Rxc4 {[%emt 0:00:06]} 44. Rxc4 {[%emt 0:01:00]} Nc7 {[%emt 0:07:27]} 45. Qf2 {[%emt 0:16:20]} Ne6 {[%emt 0:00:40]} 46. a4 {[%emt 0:02:46]} a6 {[%emt 0:00:14]} 47. b5 {[%emt 0:03:01]} axb5 {[%emt 0:00:02]} 48. axb5 {[%emt 0:00:05]} Qd5 {[%emt 0:00:10]} 49. Qf3 {[%emt 0:01:37]} Qxf3 {[%emt 0:01:15]} 50. Nxf3 {[%emt 0:00:02]} Nxf4 {[%emt 0:00:11]} 51. Rc6 {[%emt 0:01:38]} Rb8 {[%emt 0:01:06]} 52. Kf2 {[%emt 0:00:54]} Nd5 {[%emt 0:00:45]} 53. Ne5 {[%emt 0:01:09]} Rb7 {[%emt 0:00:54]} 54. g4 {[%emt 0:01:38]} fxg4 {[%emt 0:00:24]} 55. hxg4 {[%emt 0:00:15]} Kf8 {[%emt 0:00:36]} 56. Kf3 {[%emt 0:00:39]} Ke7 {[%emt 0:00:20]} 57. Ke4 {[%emt 0:01:19]} Nc7 {[%emt 0:00:37]} 58. Nc4 {[%emt 0:00:41]} Nxb5 {[%emt 0:00:11]} 59. Nxb6 {[%emt 0:00:45]} Na7 {[%emt 0:00:56]} 60. Nd5+ {[%emt 0:00:22]} Kf7 {[%emt 0:00:26]} 61. Rf6+ {[%emt 0:00:33]} Kg7 {[%emt 0:00:01]} 62. Rb6 {[%emt 0:00:16]} Rxb6 {[%emt 0:00:51]} 63. Nxb6 {[%emt 0:00:01]} Kf6 {[%emt 0:00:34]} 64. Kf4 {[%emt 0:00:33]} h5 {[%emt 0:00:37]} 65. Ke4 {Ke5+} 1/2-1/2

[Event "WYCC U18 Girls 2019"]
[Site "Mumbai"]
[Date "2019.10.11"]
[Round "10.14"]
[White "Sanskriti Goyal"]
[Black "Khachatryan, Anna"]
[Result "1/2-1/2"]
[ECO "E46"]
[WhiteElo "1980"]
[BlackElo "2044"]
[Annotator "NA"]
[PlyCount "117"]
[EventDate "2019.10.02"]
[EventType "swiss"]
[EventCountry "IND"]
[SourceTitle "playchess.com"]
[Source "ChessBase"]
[SourceQuality "1"]
[TimeControl "40/5400+30:1800+30"]

1. d4 Nf6 2. c4 e6 3. Nc3 Bb4 4. e3 O-O 5. Nge2 d5 6. a3 Be7 7. cxd5 exd5 8. Nf4 c6 9. Bd3 Nbd7 10. O-O Re8 11. f3 Nf8 12. Bc2 Ne6 13. e4 Nxf4 14. Bxf4 Be6 15. e5 Nd7 16. Be3 Nf8 17. f4 f5 18. g4 Qd7 19. Ne2 Ng6 20. gxf5 Bxf5 21. Bxf5 Qxf5 22. Ng3 Qh3 23. f5 Nh4 24. Rf2 g6 25. Qf1 Qxf1+ 26. Raxf1 Nxf5 27. Nxf5 gxf5 28. Rxf5 Rf8 29. Bg5 Rxf5 30. Rxf5 Rf8 31. Rxf8+ Bxf8 32. Kf2 Kf7 33. Ke3 c5 34. Kd3 Ke6 35. Bd2 b6 36. b4 Be7 37. bxc5 bxc5 38. a4 cxd4 39. Kxd4 Ba3 40. Be3 a6 41. h3 Bb2+ 42. Kc5 Kxe5 43. Kb6 d4 44. Bh6 Ke4 45. Kxa6 d3 46. Kb5 Bc3 47. h4 Bd4 48. a5 Be3 49. a6 d2 50. a7 Bxa7 51. Bxd2 h5 52. Kc4 Bf2 53. Bg5 Be1 54. Bd8 Bg3 55. Bg5 Be5 56. Bd8 Kf3 57. Kd3 Bf4 58. Be7 Kg4 59. Ke4 1/2-1/2

[Event "WYCC U18 Girls 2019"]
[Site "Mumbai"]
[Date "2019.10.12"]
[Round "11.1"]
[White "Serikbay, Assel"]
[Black "Shuvalova, Polina"]
[Result "1/2-1/2"]
[ECO "A40"]
[WhiteElo "2208"]
[BlackElo "2412"]
[Annotator "ChessBase"]
[PlyCount "105"]
[EventDate "2019.10.02"]
[EventType "swiss"]
[EventCountry "IND"]
[SourceTitle "playchess.com"]
[Source "ChessBase"]
[SourceQuality "1"]
[TimeControl "40/5400+30:1800+30"]

1. d4 {[%emt 0:00:00]} Nf6 {[%emt 0:00:00]} 2. c4 {[%emt 0:00:00]} e6 {[%emt 0:00:00]} 3. g3 {[%emt 0:00:00]} d5 {[%emt 0:00:00]} 4. Nf3 {[%emt 0:00:00]} Bb4+ {[%emt 0:00:00]} 5. Bd2 {[%emt 0:00:00]} Be7 {[%emt 0:00:04]} 6. Bg2 {[%emt 0:00:14]} c6 {[%emt 0:00:04]} 7. O-O {[%emt 0:00:11]} Nbd7 {[%emt 0:00:05]} 8. Qc2 {[%emt 0:00:21]} b6 {[%emt 0:00:09]} 9. Bf4 {[%emt 0:04:18]} Bb7 {[%emt 0:00:05]} 10. Rd1 {[%emt 0:01:19]} Rc8 {[%emt 0:00:09]} 11. Ne5 {[%emt 0:03:08]} Nxe5 {[%emt 0:00:09]} 12. Bxe5 {[%emt 0:06:10]} O-O {[%emt 0:00:33]} 13. b3 {[%emt 0:21:00]} c5 {[%emt 0:06:18]} 14. dxc5 {[%emt 0:01:02]} Bxc5 {[%emt 0:01:18]} 15. e3 {[%emt 0:03:25]} Ng4 {[%emt 0:11:10]} 16. Bb2 {[%emt 0:12:14]} Qe7 {[%emt 0:04:07]} 17. Qe2 {[%emt 0:01:21]} Nf6 {[%emt 0:01:30]} 18. cxd5 {[%emt 0:04:54]} Bxd5 {[%emt 0:02:42]} 19. e4 {[%emt 0:00:45]} Bc6 {[%emt 0:07:15]} 20. Nc3 {[%emt 0:08:53]} Qb7 {[%emt 0:03:15]} 21. a3 {[%emt 0:05:32]} a5 {[%emt 0:01:09]} 22. g4 {[%emt 0:09:01]} Rfd8 {[%emt 0:06:17]} 23. g5 {[%emt 0:03:59]} Nd7 {[%emt 0:00:22]} 24. Nd5 {[%emt 0:06:14]} Qb8 {[%emt 0:03:42]} 25. Ne3 {[%emt 0:04:43]} Qf4 {[%emt 0:01:28]} 26. Nc4 {[%emt 0:02:07]} Qxg5 {[%emt 0:01:40]} 27. Rd3 {[%emt 0:00:10]} Qe7 {[%emt 0:06:55]} 28. Rg3 {[%emt 0:00:06]} f6 {[%emt 0:06:41]} 29. h4 {[%emt 0:00:23]} e5 {[%emt 0:03:26]} 30. h5 {[%emt 0:00:16]} Nf8 {[%emt 0:00:26]} 31. b4 {[%emt 0:02:19]} axb4 {[%emt 0:06:18]} 32. axb4 {[%emt 0:00:13]} Bd4 {[%emt 0:04:53]} 33. Bxd4 {[%emt 0:00:11]} Rxd4 {[%emt 0:01:22]} 34. Nxb6 {[%emt 0:00:06]} Rb8 {[%emt 0:00:16]} 35. Nd5 {[%emt 0:01:17]} Bxd5 {[%emt 0:03:46]} 36. exd5 {[%emt 0:00:01]} Rbxb4 {[%emt 0:00:36]} 37. Qa2 {[%emt 0:01:57]} Qf7 {[%emt 0:05:31]} 38. Qa8 {[%emt 0:00:07]} Qxh5 {[%emt 0:01:55]} 39. Bf3 {[%emt 0:00:18]} Qf5 {[%emt 0:04:47]} 40. Ra7 {[%emt 0:00:33]} g5 {[%emt 0:01:54]} 41. Bh5 {[%emt 0:11:15]} Qb1+ {[%emt 0:07:44]} 42. Kg2 {[%emt 0:00:08]} Rb8 {[%emt 0:00:14]} 43. Qc6 {[%emt 0:00:36]} Qb6 {[%emt 0:02:00]} 44. Rga3 {[%emt 0:01:35]} Rd2 {[%emt 0:10:38]} 45. Qxb6 {[%emt 0:00:29]} Rxb6 {[%emt 0:00:01]} 46. Rf7 {[%emt 0:03:20]} Rb8 {[%emt 0:05:32]} 47. Rxf6 {[%emt 0:01:34]} Rxd5 {[%emt 0:01:13]} 48. Rf5 {[%emt 0:00:53]} Rd7 {[%emt 0:03:03]} 49. Rxg5+ {[%emt 0:00:54]} Rg7 {[%emt 0:00:27]} 50. Bf7+ {[%emt 0:03:24]} Kh8 {[%emt 0:00:03]} 51. Rag3 {[%emt 0:00:11]} Rxg5 {[%emt 0:01:38]} 52. Rxg5 {[%emt 0:00:05]} Ng6 {[%emt 0:00:21]} 53. Bxg6 {[%emt 0:00:06]} 1/2-1/2

[Event "WYCC U18 Girls 2019"]
[Site "Mumbai"]
[Date "2019.10.12"]
[Round "11.2"]
[White "Obolentseva, Alexandra"]
[Black "Vantika Agrawal"]
[Result "1/2-1/2"]
[ECO "A41"]
[WhiteElo "2282"]
[BlackElo "2283"]
[Annotator "ChessBase"]
[PlyCount "65"]
[EventDate "2019.10.02"]
[EventType "swiss"]
[EventCountry "IND"]
[SourceTitle "playchess.com"]
[Source "ChessBase"]
[SourceQuality "1"]
[TimeControl "40/5400+30:1800+30"]

1. d4 {[%emt 0:00:00]} d6 {[%emt 0:00:00]} 2. Nf3 {[%emt 0:00:00]} Nf6 {[%emt 0:00:00]} 3. c4 {[%emt 0:00:00]} g6 {[%emt 0:00:14]} 4. Nc3 {[%emt 0:00:04]} Bf5 {[%emt 0:00:10]} 5. Ng5 {[%emt 0:00:25]} Bd7 {[%emt 0:01:49]} 6. e4 {[%emt 0:00:19]} e5 {[%emt 0:02:10]} 7. d5 {[%emt 0:07:48]} Bg7 {[%emt 0:00:50]} 8. Be2 {[%emt 0:02:33]} a5 {[%emt 0:01:12]} 9. O-O {[%emt 0:05:40]} h6 {[%emt 0:02:19]} 10. Nf3 {[%emt 0:00:07]} O-O {[%emt 0:00:40]} 11. c5 {[%emt 0:03:02]} Na6 {[%emt 0:04:17]} 12. cxd6 {[%emt 0:00:30]} cxd6 {[%emt 0:00:05]} 13. Nd2 {[%emt 0:03:59]} a4 {[%emt 0:30:02]} 14. Nxa4 {[%emt 0:08:40]} b5 {[%emt 0:01:22]} 15. Nc3 {[%emt 0:01:38]} b4 {[%emt 0:02:15]} 16. Nb5 {[%emt 0:01:39]} Nc5 17. Nxd6 {[%emt 0:01:31]} Ba4 {[%emt 0:08:28]} 18. b3 {[%emt 0:00:07]} Qxd6 {[%emt 0:00:30]} 19. bxa4 {[%emt 0:00:14]} Nfxe4 {[%emt 0:00:51]} 20. Nxe4 {[%emt 0:01:40]} Nxe4 {[%emt 0:00:06]} 21. Bb2 {[%emt 0:01:22]} Nc3 {[%emt 0:05:25]} 22. Bxc3 {[%emt 0:00:20]} bxc3 {[%emt 0:00:05]} 23. Bb5 {[%emt 0:00:18]} e4 {[%emt 0:02:23]} 24. Bc6 {[%emt 0:00:52]} Ra7 {[%emt 0:07:33]} 25. Rb1 {[%emt 0:03:23]} Be5 {[%emt 0:01:06]} 26. Kh1 {[%emt 0:01:11]} Qe7 {[%emt 0:08:21]} 27. Qg4 {[%emt 0:02:29]} Bb8 {[%emt 0:03:35]} 28. Rfe1 {[%emt 0:06:37]} Qd6 {[%emt 0:02:14]} 29. Qg3 {[%emt 0:04:10]} Qxg3 {[%emt 0:05:38]} 30. hxg3 {[%emt 0:00:16]} f5 {[%emt 0:00:22]} 31. Rbc1 {[%emt 0:10:43]} Be5 {[%emt 0:00:24]} 32. Red1 {[%emt 0:00:29]} Rd8 {[%emt 0:01:52]} 33. Rc2 {[%emt 0:00:54]} 1/2-1/2

[Event "WYCC U18 Girls 2019"]
[Site "Mumbai"]
[Date "2019.10.12"]
[Round "11.3"]
[White "Urh, Zala"]
[Black "Kucharska, Honorata"]
[Result "1/2-1/2"]
[ECO "A55"]
[WhiteElo "2105"]
[BlackElo "2114"]
[Annotator "ChessBase"]
[PlyCount "159"]
[EventDate "2019.10.02"]
[EventType "swiss"]
[EventCountry "IND"]
[SourceTitle "playchess.com"]
[Source "ChessBase"]
[SourceQuality "1"]
[TimeControl "40/5400+30:1800+30"]

1. d4 {[%emt 0:00:00]} Nf6 {[%emt 0:00:00]} 2. c4 {[%emt 0:00:00]} d6 {[%emt 0:00:00]} 3. Nf3 {[%emt 0:00:00]} Nbd7 {[%emt 0:00:25]} 4. Nc3 {[%emt 0:00:07]} e5 {[%emt 0:00:20]} 5. e4 {[%emt 0:00:13]} g6 {[%emt 0:00:16]} 6. Be2 {[%emt 0:00:54]} Bg7 {[%emt 0:00:42]} 7. Be3 {[%emt 0:00:54]} O-O {[%emt 0:01:14]} 8. O-O {[%emt 0:00:16]} Re8 {[%emt 0:03:33]} 9. d5 {[%emt 0:00:43]} Nc5 {[%emt 0:04:01]} 10. Nd2 {[%emt 0:01:49]} a5 {[%emt 0:00:25]} 11. b3 {[%emt 0:01:16]} Nfd7 {[%emt 0:02:04]} 12. Qc2 {[%emt 0:04:22]} Rf8 {[%emt 0:01:40]} 13. f3 {[%emt 0:03:34]} f5 {[%emt 0:00:25]} 14. exf5 {[%emt 0:03:11]} gxf5 {[%emt 0:02:14]} 15. a3 {[%emt 0:02:33]} Nf6 {[%emt 0:04:44]} 16. b4 {[%emt 0:03:08]} Na6 {[%emt 0:00:51]} 17. Rab1 {[%emt 0:02:57]} Nh5 {[%emt 0:03:41]} 18. c5 {[%emt 0:05:26]} axb4 {[%emt 0:09:21]} 19. axb4 {[%emt 0:00:26]} Nf4 {[%emt 0:00:34]} 20. c6 {[%emt 0:25:44]} Qg5 {[%emt 0:03:46]} 21. Bxf4 {[%emt 0:01:04]} Qxf4 {[%emt 0:01:18]} 22. Na2 {[%emt 0:09:54]} bxc6 {[%emt 0:08:59]} 23. dxc6 {[%emt 0:01:01]} Be6 {[%emt 0:00:42]} 24. Kh1 {[%emt 0:03:50]} Kh8 {[%emt 0:01:49]} 25. b5 {[%emt 0:02:56]} Nc5 {[%emt 0:03:10]} 26. Nb4 {[%emt 0:01:43]} Rf6 {[%emt 0:06:01]} 27. g3 {[%emt 0:01:56]} Qg5 {[%emt 0:00:39]} 28. Bc4 {[%emt 0:09:48]} Rh6 {[%emt 0:03:15]} 29. Kg2 {[%emt 0:00:32]} Rg8 {[%emt 0:03:57]} 30. b6 {[%emt 0:03:11]} Bf6 {[%emt 0:04:25]} 31. Rg1 {[%emt 0:00:24]} Qh5 {[%emt 0:06:50]} 32. Nf1 {[%emt 0:00:28]} e4 {[%emt 0:00:34]} 33. fxe4 {[%emt 0:05:01]} fxe4 {[%emt 0:04:17]} 34. Be2 {[%emt 0:00:27]} Qf5 {[%emt 0:01:26]} 35. Kh1 {[%emt 0:04:24]} cxb6 {[%emt 0:00:46]} 36. Rg2 {[%emt 0:02:18]} d5 {[%emt 0:03:19]} 37. Ne3 {[%emt 0:00:52]} Qg5 {[%emt 0:00:26]} 38. Nexd5 {[%emt 0:00:39]} Bh3 {[%emt 0:02:42]} 39. Rgg1 {[%emt 0:00:48]} Bd4 {[%emt 0:01:47]} 40. c7 {[%emt 0:00:26]} Be6 {[%emt 0:02:03]} 41. Rg2 {[%emt 0:03:49]} Qe5 {[%emt 0:12:23]} 42. Nf4 {[%emt 0:13:43]} Bf5 {[%emt 0:07:37]} 43. Rd1 {[%emt 0:02:19]} Bc8 {[%emt 0:07:13]} 44. Qc4 {[%emt 0:04:33]} Rd6 {[%emt 0:00:58]} 45. Nbd5 {[%emt 0:00:45]} Bb2 {[%emt 0:05:54]} 46. Qb4 {[%emt 0:01:48]} Bb7 {[%emt 0:01:52]} 47. Bc4 {[%emt 0:01:55]} Bd4 {[%emt 0:01:07]} 48. Rgd2 {[%emt 0:01:31]} Nd3 {[%emt 0:00:51]} 49. Rxd3 {[%emt 0:02:11]} exd3 {[%emt 0:00:05]} 50. Re1 {[%emt 0:00:03]} Bc3 {[%emt 0:02:08]} 51. Rxe5 {[%emt 0:01:37]} Bxb4 {[%emt 0:00:02]} 52. Bxd3 {[%emt 0:00:11]} Bd2 {[%emt 0:01:17]} 53. Rh5 {[%emt 0:00:30]} h6 {[%emt 0:00:16]} 54. Kg1 {[%emt 0:00:37]} Bxf4 {[%emt 0:02:48]} 55. Nxf4 {[%emt 0:00:05]} Rg5 {[%emt 0:01:37]} 56. Be4 {[%emt 0:01:55]} Bc8 {[%emt 0:00:06]} 57. Rxg5 {[%emt 0:00:28]} hxg5 {[%emt 0:00:04]} 58. Ng6+ {[%emt 0:00:19]} Kg7 {[%emt 0:00:53]} 59. Ne7 {[%emt 0:00:01]} Rd1+ {[%emt 0:00:41]} 60. Kf2 {[%emt 0:00:18]} Ba6 {[%emt 0:00:11]} 61. c8=Q {[%emt 0:00:46]} Bxc8 {[%emt 0:00:04]} 62. Nxc8 {[%emt 0:00:01]} b5 {[%emt 0:00:11]} 63. Ke2 {[%emt 0:00:58]} Ra1 {[%emt 0:00:12]} 64. Nd6 {[%emt 0:00:51]} b4 {[%emt 0:00:09]} 65. Bd5 {[%emt 0:00:55]} Rb1 {[%emt 0:01:07]} 66. Nc4 {[%emt 0:00:43]} Kf6 {[%emt 0:00:25]} 67. Nd2 {[%emt 0:00:17]} Ra1 {[%emt 0:00:07]} 68. Kd3 {[%emt 0:00:37]} Ke5 {[%emt 0:00:50]} 69. Bb3 {[%emt 0:00:32]} Rc1 {[%emt 0:01:39]} 70. Bc2 {[%emt 0:00:47]} g4 {[%emt 0:00:33]} 71. Nc4+ {[%emt 0:00:19]} Kf6 {[%emt 0:00:12]} 72. Ne3 {[%emt 0:00:27]} Kg5 {[%emt 0:00:15]} 73. Kc4 {[%emt 0:00:45]} Rh1 {[%emt 0:00:28]} 74. Kxb4 {[%emt 0:00:22]} Rxh2 {[%emt 0:00:04]} 75. Kc3 {[%emt 0:00:26]} Rf2 {[%emt 0:01:41]} 76. Bd1 {[%emt 0:00:13]} Rf8 {[%emt 0:00:27]} 77. Bxg4 {[%emt 0:00:36]} Re8 {[%emt 0:00:14]} 78. Kd2 {[%emt 0:00:23]} Rxe3 {[%emt 0:00:03]} 79. Kxe3 {[%emt 0:00:04]} Kxg4 {[%emt 0:00:02]} 80. Ke4 {[%emt 0:00:44]} 1/2-1/2

[Event "WYCC U18 Girls 2019"]
[Site "Mumbai"]
[Date "2019.10.12"]
[Round "11.5"]
[White "Yan, Tianqi"]
[Black "Schulze, Lara"]
[Result "0-1"]
[ECO "B68"]
[WhiteElo "2236"]
[BlackElo "2327"]
[Annotator "RC"]
[PlyCount "70"]
[EventDate "2019.10.02"]
[EventType "swiss"]
[EventCountry "IND"]
[SourceTitle "playchess.com"]
[Source "ChessBase"]
[SourceQuality "1"]
[TimeControl "40/5400+30:1800+30"]

1. e4 {[%emt 0:00:00]} c5 {[%emt 0:00:00]} 2. Nf3 {[%emt 0:00:00]} d6 {[%emt 0:00:00]} 3. d4 {[%emt 0:00:00]} Nf6 {[%emt 0:00:00]} 4. Nc3 {[%emt 0:00:00]} cxd4 {[%emt 0:00:00]} 5. Nxd4 {[%emt 0:00:00]} Nc6 {[%emt 0:00:00]} 6. Bg5 {[%emt 0:00:08]} e6 {[%emt 0:00:00]} 7. Qd2 {[%emt 0:00:08]} a6 {[%emt 0:00:00]} 8. O-O-O {[%emt 0:00:11]} Bd7 {[%emt 0:00:05]} 9. f4 {[%emt 0:00:10]} Be7 {[%emt 0:00:10]} 10. Be2 {[%emt 0:08:11]} h6 {[%emt 0:02:19]} 11. Bh4 {[%emt 0:03:50]} b5 {[%emt 0:03:54]} 12. Bxb5 {[%emt 0:14:09]} axb5 {[%emt 0:00:44]} 13. Ndxb5 {[%emt 0:00:04]} Nb4 {[%emt 0:18:18]} 14. Bxf6 {[%emt 0:11:47]} gxf6 {[%emt 0:04:27]} 15. Nxd6+ {[%emt 0:02:50]} Bxd6 {[%emt 0:03:16]} 16. Qxd6 {[%emt 0:00:16]} Nxa2+ {[%emt 0:00:14]} 17. Nxa2 {[%emt 0:00:06]} Rxa2 {[%emt 0:00:09]} 18. Kb1 {[%emt 0:00:11]} Ra7 {[%emt 0:04:54]} 19. b3 {[%emt 0:03:26]} Qc7 {[%emt 0:06:24]} 20. Qd4 {[%emt 0:01:18]} O-O {[%emt 0:10:44]} 21. Qxf6 {[%emt 0:02:39]} Rc8 {[%emt 0:04:11]} 22. Qb2 {[%emt 0:03:01]} Qxf4 {[%emt 0:09:18]} 23. Rhf1 {[%emt 0:05:03]} Qxe4 {[%emt 0:03:26]} 24. Rfe1 {[%emt 0:11:15]} Qc6 {[%emt 0:02:51]} 25. Re3 {[%emt 0:03:59]} Ra5 {[%emt 0:01:33]} 26. Rh3 {[%emt 0:03:07]} e5 {[%emt 0:03:26]} 27. Rg3+ {[%emt 0:00:42]} Kh7 {[%emt 0:00:50]} 28. Rf1 {[%emt 0:00:40]} Be6 {[%emt 0:06:50]} 29. Rf6 {[%emt 0:00:27]} Rca8 {[%emt 0:00:18]} 30. Rh3 {[%emt 0:04:07]} Ra1+ {[%emt 0:01:14]} 31. Qxa1 {[%emt 0:00:02]} Rxa1+ {[%emt 0:00:07]} 32. Kxa1 {[%emt 0:00:04]} Qa8+ {[%emt 0:00:10]} 33. Kb2 {[%emt 0:00:07]} Bxh3 {[%emt 0:00:05]} 34. gxh3 {[%emt 0:00:16]} Qd5 {[%emt 0:01:28]} 35. b4 {[%emt 0:00:18]} e4 {[%emt 0:00:16]} 0-1